{"text_format":"1","workbook":"xlsx","n_sheets":2,"sheets":["Pasiūlymas","Subtiekėjai"],"not_rendered":{"charts":0,"images":0,"macros":1,"external_links":0,"defined_names":1,"comments":0,"pivot_tables":0},"unopened":[],"bounds":{"document_bytes":16777216,"sheet_cells":100000,"rows_first":2000,"rows_last":500,"rows_between":2000,"halvings":0,"cell_chars":16384,"cell_head_chars":4096},"cells_cut":0,"cells_raw":0,"read":"whole","date_system":"1900"}

{"sheet":"Pasiūlymas","index":0,"n_rows":204,"n_cols":13,"rows_kept":204,"cut":false,"hidden":false,"merged":[[146,1,146,7],[157,1,157,7],[170,1,170,7],[183,1,183,7],[194,1,194,7],[88,1,88,7],[103,1,103,7],[115,1,115,7],[124,1,124,7],[135,1,135,7],[28,1,28,7],[40,1,40,7],[55,1,55,7],[66,1,66,7],[74,1,74,7],[18,0,18,1],[18,2,18,4],[19,0,19,1],[19,2,19,4],[22,0,22,5],[15,0,15,1],[15,2,15,4],[16,0,16,1],[16,2,16,4],[17,0,17,1],[17,2,17,4],[12,0,12,1],[12,2,12,4],[13,0,13,1],[13,2,13,4],[14,0,14,1],[14,2,14,4],[9,0,9,1],[9,2,9,4],[10,0,10,1],[10,2,10,4],[11,0,11,1],[11,2,11,4]]}
["Perkančioji organizacija, kuriai teikiamas pasiūlymas:",null,"VŠĮ Kauno klinikinė ligoninė"]
[]
[null,"PASIŪLYMAS"]
[null,"Vienkartinės medicininės priemonės"]
[]
["Data:","2018-04-10"]
["Nr.:",20325]
["Vieta:","Kaunas"]
[]
["Tiekėjo pavadinimas /Jeigu dalyvauja ūkio subjektų grupė, surašomi visi dalyvių pavadinimai/",null,"UAB \"Skirgesa\""]
["Įmonės kodas /Jeigu dalyvauja ūkio subjektų grupė, surašomi visi dalyvių kodai/",null,234449420]
["PVM mokėtojo kodas /Jeigu dalyvauja ūkio subjektų grupė, surašomi visi dalyvių kodai/",null,"LT344494219 "]
["Banko pavadinimas, banko kodas, sąskaitos Nr.",null,"A/s. LT41 7300 0100 7979 6368, AB Swedbank, banko kodas 73000\n"]
["Tiekėjo adresas /Jeigu dalyvauja ūkio subjektų grupė, surašomi visi dalyvių adresai/",null,"Energetikų g. 8, Kaunas"]
["Telefono numeris",null,"8 37 457746"]
["Fakso numeris",null,"8 37 458161"]
["El. pašto adresas",null,"info@skirgesa.lt"]
["Asmens, pasirašiusio pasiūlymą saugiu elektroniniu parašu, vardas, pavardė, pareigos ",null,"Administratorė Gintarė Saročkienė"]
["Asmens, įgalioto pasirašyti sutartį, vardas, pavardė, pareigos",null,"Direktorius Skirmantas Akelis"]
[]
[]
[]
["1. Šiuo pasiūlymu pažymime, kad sutinkame su visomis pirkimo sąlygomis, nustatytomis:\n1) pirkimo skelbime, paskelbtame Viešųjų pirkimų įstatymo nustatyta tvarka;\n2) pirkimo sąlygose ir kituose pirkimo dokumentuose (jų paaiškinimuose, papildymuose).\n"]
[]
["Siūlomas pirkimo objektas visiškai atitinka pirkimo sąlygose nustatytus reikalavimus ir jo kaina yra:"]
[]
[]
["Nr.","Pavadinimas","Kiekis","Mato vienetas","Kaina be PVM","Suma be PVM","Siūlomos prekės pavadinimas ir/ar gamintojas","Siūlomos prekės parametrai",null,null,"","",""]
["351.","Automatinė \"giljotinos tipo\" biopsinė šaudyklė"]
["351.1.","Automatinė \"giljotinos tipo\" biopsinė šaudyklė",150,"Vnt.",28.5,{"$f":"C30*E30","v":4275},"CoreCut, Pajunk","","",""]
["351.1.1.","Sterili, vienkartinio naudojimo, višiškai automatinė",null,null,null,null,null,"Sterili, vienkartinio naudojimo, višiškai automatinė"]
["351.1.2.","Adata su echopozityviniu žymekliu bei punkcijos gylio centrimetrinėmis atžymomis",null,null,null,null,null,"Adata su echopozityviniu žymekliu bei punkcijos gylio centrimetrinėmis atžymomis"]
["351.1.3.","Būtina galimybė užtaisyti šaudyklę pakartotinai ir paimti kelis biopsinius stulpelius",null,null,null,null,null,"Būtina galimybė užtaisyti šaudyklę pakartotinai ir paimti kelis biopsinius stulpelius",null,""]
["351.1.4.","Būtinas apsauginis mugtukas nuo atsitiktinio iššovimo",null,null,null,null,null,"Būtinas apsauginis mugtukas nuo atsitiktinio iššovimo",null,null,null,""]
["351.1.5.","Biopsijos stulpelių ilgiai 10mm ir 22mm",null,null,null,null,null,"Biopsijos stulpelių ilgiai 10mm ir 22mm",null,null,null,""]
["351.1.6.","Adatos diemetras 16G, adatos ilgis 180mm ± 30mm",null,null,null,null,null,"Adatos diemetras 16G, adatos ilgis 150 mm/200mm ",null,"","",""]
[null,"","","","Suma be PVM",{"$f":"F30","v":4275},"","","","","",""]
[null,"","","","PVM suma",{"$f":"F39-F37","v":213.75},"","","","","",""]
[null,"","","","Suma su PVM",{"$f":"F37*1.05","v":4488.75},"","","","","",""]
[]
["352.","Kvėpavimo kontūras suaugusiems dvikanalis",null,null,null,null,null,null,null,""]
["352.1.","Kvėpavimo kontūras suaugusiems dvikanalis",300,"Vnt.",8.8000000000000007,{"$f":"C42*E42","v":2640},"Septiflow, AL-11103-160","","",""]
["352.1.1.","Gofruotas kvėpavimo kontūras, sudarytas iš vieno vamzdžio, turintis sienelę, skiriančią vamzdį į du kanalus - įkvėpimo ir iškvėpimo",null,null,null,null,null,"Gofruotas kvėpavimo kontūras, sudarytas iš vieno vamzdžio, turintis sienelę, skiriančią vamzdį į du kanalus - įkvėpimo ir iškvėpimo",null,null,null,""]
["352.1.2.","Pilnai uždara sistema",null,null,null,null,null,"Pilnai uždara sistema",null,"",null,""]
["352.1.3.","Vamzdžio diametras 22mm, ilgis 180cm ± 10cm",null,null,null,null,null,"Vamzdžio diametras 22mm, ilgis 180cm ",null,null,null,""]
["352.1.4.","Su alkūne paciento pusėje, kuri turi CO2 monitoravimo angą. Su integruota CO2 monitoravimo linija. Vamzdyje integruotas drėgmės surinkėjas su beadatiniais konektoriais",null,null,null,null,null,"Su alkūne paciento pusėje, kuri turi CO2 monitoravimo angą. Su integruota CO2 monitoravimo linija. Vamzdyje integruotas drėgmės surinkėjas su beadatiniais konektoriais"]
["352.1.5.","Kontūrų galuose standartiniai konektoriai 22mmF",null,null,null,null,null,"Kontūrų galuose standartiniai konektoriai 22mmF",null,"","",""]
["352.1.6.","Papildoma atšaka - limbas 90cm ±10cm ilgio su konektoriais 22mmF abiejuose galuose",null,null,null,null,null,"Papildoma atšaka - limbas 90cm  ilgio su konektoriais 22mmF abiejuose galuose",null,"","",""]
["352.1.7.","Maišo tūris 2L",null,null,null,null,null,"Maišo tūris 2L",null,"","",""]
["352.1.8.","Pakuotėje turi būti filtras",null,null,null,null,null,"Pakuotėje turi būti filtras"]
["352.1.9.","Vienkartinis",null,null,null,null,null,"Vienkartinis"]
[null,"","","","Suma be PVM",{"$f":"F42","v":2640},"","","","","",""]
[null,"","","","PVM suma",{"$f":"F54-F52","v":132},"","","","","",""]
[null,"","","","Suma su PVM",{"$f":"F52*1.05","v":2772},"","","","","",""]
[]
["353.","Priemonės miografiniam ir neurografiniam  tyrimui"]
["353.1.","Kabelis miografiniam tyrimui",2,"Vnt.",null,null,null,"","",""]
["353.1.1.","Kabelis, tinkantis elektromiografui KEYPOINT G4, arba lygiavertis"]
["353.2.","Paciento elektrodas ",240,"Vnt.",null,null,null,"","",""]
["353.2.1.","Tinkantis elektromiografui KEYPOINT G4 arba lygiavertis"]
["353.3.","Vienkartinis įžeminimo elektrodas (neurografijai) ",200,"Vnt.",null,null,null,"","",""]
["353.3.1.","Tinkantis elektromiografui KEYPOINT G4 arba lygiavertis"]
[null,"","","","Suma be PVM",null,"","","","","",""]
[null,"","","","PVM suma",null,"","","","","",""]
[null,"","","","Suma su PVM",null,"","","","","",""]
[]
["354.","Reguliatorius skysčio  srauto"]
["354.1.","Reguliatorius skysčio  srauto",210,"Vnt.",null,null,null,"","",""]
["354.1.1.","Gradacijos skalė 0-250ml/h"]
["354.1.2.","Įkomponuotas į 150cm ilgio infuzinę sistemą, turinčią spaustuką infuzijai stabdyti bei Luer Lock tipo konektorių"]
[null,"","","","Suma be PVM",null,"","","","","",""]
[null,"","","","PVM suma",null,"","","","","",""]
[null,"","","","Suma su PVM",null,"","","","","",""]
[]
["355.","Adatos spinalinės "]
["355.1.","Adatos spinalinės G25 0,5x90 mm",20,"Vnt.",1.1000000000000001,{"$f":"C76*E76","v":22},"Spinal Needle, SPPK2590, Egemen","","",""]
["355.1.1.","Adatos pieštuko formos, buku galu",null,null,null,null,null,"Adatos pieštuko formos, buku galu"]
["355.1.2.","Nuopjovos kraštai užapvalinti, anga šone su intradiuseriu (nukreipėju)",null,null,null,null,null,"Nuopjovos kraštai užapvalinti, anga šone su intradiuseriu (nukreipėju)"]
["355.2.","Adatos spinalinės G26 0,40-0,45 x 88-90 mm",100,"Vnt.",1.18,{"$f":"C79*E79","v":118},"Spinal Needle, TSPPK2690, Egemen","","",""]
["355.2.1.","Adatos pieštuko formos, buku galu",null,null,null,null,null,"Adatos pieštuko formos, buku galu"]
["355.2.2.","Nuopjovos kraštai užapvalinti, anga šone su intradiuseriu (nukreipėju)",null,null,null,null,null,"Nuopjovos kraštai užapvalinti, anga šone su intradiuseriu (nukreipėju)"]
["355.3.","Adatos spinalinės G27 0,40-0,45 x 88-90 mm",420,"Vnt.",1.42,{"$f":"C82*E82","v":596.4},"Spinal Needle SPPK2790, Egemen","","",""]
["355.3.1.","Adatos pieštuko formos, buku galu",null,null,null,null,null,"Adatos pieštuko formos, buku galu"]
["355.3.2.","Nuopjovos kraštai užapvalinti, anga šone su intradiuseriu (nukreipėju)",null,null,null,null,null,"Nuopjovos kraštai užapvalinti, anga šone su intradiuseriu (nukreipėju)"]
[null,"","","","Suma be PVM",{"$f":"SUM(F76:F82)","v":736.4},"","","","","",""]
[null,"","","","PVM suma",{"$f":"F87-F85","v":36.82000000000005},"","","","","",""]
[null,"","","","Suma su PVM",{"$f":"F85*1.05","v":773.22},"","","","","",""]
[]
["356.","Sprotte tipo arba analogiška adata"]
["356.1.","Sprotte tipo arba analogiška adata G26 88-90mm",80,"Vnt.",3.6,{"$f":"C90*E90","v":288},"Sprotte Needle, Pajunk ","","",""]
["356.1.1.","Visiškai atraumatinė; idealiai nupoliruotas vidinis ir išorinis kaniulės paviršius",null,null,null,null,null,"Visiškai atraumatinė; idealiai nupoliruotas vidinis ir išorinis kaniulės paviršius"]
["356.1.2.","Šoninis atvėrimas maksimaliai pritrauktas prie kaniulės galiuko greitam likvoro patekimui",null,null,null,null,null,"Šoninis atvėrimas maksimaliai pritrauktas prie kaniulės galiuko greitam likvoro patekimui"]
["356.1.3.","Užapvalinti atraumatiniai atvėrimo kraštai, saugantys pacientą nuo traumavimo ir atplaišų į kaniulę patekimo, su padidinimo efektu kaniulės laikiklyje greitai likvoro indikacijai",null,null,null,null,null,"Užapvalinti atraumatiniai atvėrimo kraštai, saugantys pacientą nuo traumavimo ir atplaišų į kaniulę patekimo, su padidinimo efektu kaniulės laikiklyje greitai likvoro indikacijai"]
["356.1.4.","Spalvotas dydžių kodavimas su nurodytu dydžiu ne tik G, bet ir milimetrais",null,null,null,null,null,"Spalvotas dydžių kodavimas su nurodytu dydžiu ne tik G, bet ir milimetrais"]
["356.2.","Sprotte tipo arba analogiška adata G27 88-90mm",80,"Vnt.",4.5,{"$f":"C95*E95","v":360},"Sprotte Needle, Pajunk ","","",""]
["356.2.1.","Visiškai atraumatinė; idealiai nupoliruotas vidinis ir išorinis kaniulės paviršius",null,null,null,null,null,"Visiškai atraumatinė; idealiai nupoliruotas vidinis ir išorinis kaniulės paviršius"]
["356.2.2.","Šoninis atvėrimas maksimaliai pritrauktas prie kaniulės galiuko greitam likvoro patekimui",null,null,null,null,null,"Šoninis atvėrimas maksimaliai pritrauktas prie kaniulės galiuko greitam likvoro patekimui"]
["356.2.3.","Užapvalinti atraumatiniai atvėrimo kraštai, saugantys pacientą nuo traumavimo ir atplaišų į kaniulę patekimo, su padidinimo efektu kaniulės laikiklyje greitai likvoro indikacijai",null,null,null,null,null,"Užapvalinti atraumatiniai atvėrimo kraštai, saugantys pacientą nuo traumavimo ir atplaišų į kaniulę patekimo, su padidinimo efektu kaniulės laikiklyje greitai likvoro indikacijai"]
["356.2.4.","Spalvotas dydžių kodavimas su nurodytu dydžiu ne tik G, bet ir milimetrais",null,null,null,null,null,"Spalvotas dydžių kodavimas su nurodytu dydžiu ne tik G, bet ir milimetrais"]
[null,"","","","Suma be PVM",{"$f":"F90+F95","v":648},"","","","","",""]
[null,"","","","PVM suma",{"$f":"F102-F100","v":32.399999999999977},"","","","","",""]
[null,"","","","Suma su PVM",{"$f":"F100*1.05","v":680.4},"","","","","",""]
[]
["357.","Spinalinė pieštukinio tipo adata"]
["357.1.","Spinalinė pieštukinio tipo adata",700,"Vnt.",4.5,{"$f":"C105*E105","v":3150},"Sprette Needle, Pajunk","","",""]
["357.1.1.","Vienkartinė sterili. Atraumatinis pieštukinio tipo adatos galiukas",null,null,null,null,null,"Vienkartinė sterili. Atraumatinis pieštukinio tipo adatos galiukas"]
["357.1.2.","Idealiai nupoliruotas vidinis ir išorinis kaniulės paviršius",null,null,null,null,null,"Idealiai nupoliruotas vidinis ir išorinis kaniulės paviršius"]
["357.1.3.","Šoninis atvėrimas maksimaliai pritrauktas prie kaniulės galiuko greitam likvoro patekimui",null,null,null,null,null,"Šoninis atvėrimas maksimaliai pritrauktas prie kaniulės galiuko greitam likvoro patekimui"]
["357.1.4.","Skaidrus laikiklis su padidinimo efektu greitai likvoro indikacijai",null,null,null,null,null,"Skaidrus laikiklis su padidinimo efektu greitai likvoro indikacijai"]
["357.1.5.","Spalvotas dydžių kodavimas su nurodytu dydžiu ne tik G bet ir milimetrais (mm)",null,null,null,null,null,"Spalvotas dydžių kodavimas su nurodytu dydžiu ne tik G bet ir milimetrais (mm)"]
["357.1.6.","Komplektuojama vienoje pakuotėje su pravedėju. Dydžiai pasirinktinai; 25G x 90mm; 25G x 120mm; 27G x 90mm; 27G x 120mm; 29G x 90mm",null,null,null,null,null,"Komplektuojama vienoje pakuotėje su pravedėju. Dydžiai pasirinktinai; 25G x 90mm; 25G x 120mm; 27G x 90mm; 27G x 120mm; 29G x 90mm"]
[null,"","","","Suma be PVM",{"$f":"F105","v":3150},"","","","","",""]
[null,"","","","PVM suma",{"$f":"F114-F112","v":157.5},"","","","","",""]
[null,"","","","Suma su PVM",{"$f":"F112*1.05","v":3307.5},"","","","","",""]
[]
["358.","Saugūs automatiniai lancetai - adatėlės"]
["358.1.","Saugūs automatiniai lancetai - adatėlės",2500,"Vnt.",null,null,null,"","",""]
["358.1.1.","Skirti kapiliarinio kraujo mėginio paėmimui iš kulniuko genetiniams tyrimams"]
["358.1.2.","Su automatiniu dūrio mechanizmu"]
["358.1.3.","Dūrio gylis 2,0m 21G, dūrio perimetras 0,8mm"]
[null,"","","","Suma be PVM",null,"","","","","",""]
[null,"","","","PVM suma",null,"","","","","",""]
[null,"","","","Suma su PVM",null,"","","","","",""]
[]
["359.","Apklotas lipniu kraštu 150x240 cm"]
["359.1.","Apklotas lipniu kraštu 150x240 cm",1500,"Vnt.",2.4980000000000002,{"$f":"E126*C126","v":3747.0000000000005},"Medline","","",""]
["359.1.1.","Medžiaga vienkartinio naudojimo sterili. ",null,null,null,null,null,"Medžiaga vienkartinio naudojimo sterili. "]
["359.1.2.","Apklotas sudarytas iš ne mažiau kaip trijų sluoksnių: viršutinis iš neaustinės medžiagos - gerai sugeria skysčius, vidurinis - iš polietileno, nepralaidus, apatinis - apsauginis neaustinės medžiagos sluoksnis",null,null,null,null,null,"Apklotas sudarytas iš  trijų sluoksnių: viršutinis iš neaustinės medžiagos - gerai sugeria skysčius, vidurinis - iš polietileno, nepralaidus, apatinis - apsauginis neaustinės medžiagos sluoksnis"]
["359.1.3.","Produktas turi trijų lygių pakuotę",null,null,null,null,null,"Produktas turi trijų lygių pakuotę"]
["359.1.4.","Apklotas įpakuotas steriliame įpakavime, su sterilumo kontrolės sistema, t.y. lipdukas su pakuotės sterilumo ir gamybos duomenimis",null,null,null,null,null,"Apklotas įpakuotas steriliame įpakavime, su sterilumo kontrolės sistema, t.y. lipdukas su pakuotės sterilumo ir gamybos duomenimis"]
["359.1.5.","Leistinas apkloto dydžių nuokrypis ± 5cm."]
[null,"","","","Suma be PVM",{"$f":"SUM(F126:F131)","v":3747.0000000000005},"","","","","",""]
[null,"","","","PVM suma",{"$f":"F134-F132","v":187.35000000000036},"","","","","",""]
[null,"","","","Suma su PVM",{"$f":"F132*1.05","v":3934.3500000000008},"","","","","",""]
[]
["360.","Operacinio lauko plėvelė 55 x 45 cm, lipni dalis 45 x 48 cm"]
["360.1.","Operacinio lauko plėvelė 55 x 45 cm, lipni dalis 45 x 48 cm",2500,"Vnt.",1.718,{"$f":"E137*C137","v":4295},"Pharmaplast","","",""]
["360.1.1.","Vienkartinio naudojimo, sterili",null,null,null,null,null,"Vienkartinio naudojimo, sterili"]
["360.1.2.","Elastinė, permatoma, lipni poliesterio plėvelė",null,null,null,null,null,"Elastinė, permatoma, lipni poliesterio plėvelė"]
["360.1.3.","Nealergizuoja odos, patikimai prilimpa plėvelės kraštai, neatsiklijuoja ilgų operacijų metu, lengvai užklijuojama",null,null,null,null,null,"Nealergizuoja odos, patikimai prilimpa plėvelės kraštai, neatsiklijuoja ilgų operacijų metu, lengvai užklijuojama"]
["360.1.4.","Plėvelė turi 2 nelimpančius kraštus",null,null,null,null,null,"Plėvelė turi 2 nelimpančius kraštus"]
["360.1.5.","Leistinas dydžių nuokrypis ± 5cm"]
[null,"","","","Suma be PVM",{"$f":"SUM(F137:F142)","v":4295},"","","","","",""]
[null,"","","","PVM suma",{"$f":"F145-F143","v":214.75},"","","","","",""]
[null,"","","","Suma su PVM",{"$f":"F143*1.05","v":4509.75},"","","","","",""]
[]
["361.","Apklotų rinkinys rankos operacijoms"]
["361.1.","Apklotų rinkinys rankos operacijoms",300,"Vnt.",8.3859999999999992,{"$f":"E148*C148","v":2515.7999999999997},"Medline","","",""]
["361.1.1.","Apklotai sudaryti iš ne mažiau kaip trijų sluoksnių: viršutinis iš neaustinės medžiagos - gerai sugeria skysčius, vidurinis - iš polietileno, nepralaidus, apatinis - apsauginis neaustinės medžiagos sluoksnis",null,null,null,null,null,"Apklotai sudaryti iš trijų sluoksnių: viršutinis iš neaustinės medžiagos - gerai sugeria skysčius, vidurinis - iš polietileno, nepralaidus, apatinis - apsauginis neaustinės medžiagos sluoksnis"]
["361.1.2.","Rinkinio sudėtis: apklotas 230 x 300 cm su elastine anga 3,5 cm, skysčius sugerianti dalis ne mažiau 50 x 100 cm – 1 vnt.; Apklotas instrumentiniam staliukui 150x190 cm – 1 vnt.; Sutvirtintas maišas MAYO staliukui 78 x145 – 1 vnt",null,null,null,null,null,"Rinkinio sudėtis: apklotas 230 x 300 cm su elastine anga 3,5 cm, skysčius sugerianti 50 x 100 cm – 1 vnt.; Apklotas instrumentiniam staliukui 150x190 cm – 1 vnt.; Sutvirtintas maišas MAYO staliukui 78 x145 – 1 vnt"]
["361.1.3.","Produktas turi trijų lygių pakuotę",null,null,null,null,null,"Produktas turi trijų lygių pakuotę"]
["361.1.4.","Rinkinys įpakuotas steriliame įpakavime, su sterilumo kontrolės sistema",null,null,null,null,null,"Rinkinys įpakuotas steriliame įpakavime, su sterilumo kontrolės sistema"]
["361.1.5.","Leistinas apklotų dydžių nuokrypis ± 5cm"]
[null,"","","","Suma be PVM",{"$f":"SUM(F148:F153)","v":2515.7999999999997},"","","","","",""]
[null,"","","","PVM suma",{"$f":"F156-F154","v":125.78999999999996},"","","","","",""]
[null,"","","","Suma su PVM",{"$f":"F154*1.05","v":2641.5899999999997},"","","","","",""]
[]
["362.","Apklotų rinkinys klubo sąnario endoprotezavimui"]
["362.1.","Apklotų rinkinys klubo sąnario endoprotezavimui",800,"Vnt.",21.98,{"$f":"E159*C159","v":17584},"Nobamed","","",""]
["362.1.1.","Medžiaga vienkartinio naudojimo sterili",null,null,null,null,null,"Medžiaga vienkartinio naudojimo sterili"]
["362.1.2.","Apklotas sudarytas iš ne mažiau kaip trijų sluoksnių: viršutinis iš neaustinės medžiagos - gerai sugeria skysčius, vidurinis - iš polietileno, nepralaidus, apatinis - apsauginis neaustinės medžiagos sluoksnis",null,null,null,null,null,"Apklotas sudarytas iš trijų sluoksnių: viršutinis iš neaustinės medžiagos - gerai sugeria skysčius, vidurinis - iš polietileno, nepralaidus, apatinis - apsauginis neaustinės medžiagos sluoksnis"]
["362.1.3.","Gerai matosi padėtos adatos, siūlai ir kitos smulkios medicininės priemonės ",null,null,null,null,null,"Gerai matosi padėtos adatos, siūlai ir kitos smulkios medicininės priemonės "]
["362.1.4.","Rinkinio sudėtis: Apklotai lipniais kraštais 90 x 75 cm – 3 vnt.; Apklotas lipniu kraštu 182 x 180cm (apklotas turi turėti papildomą absorbuojantį sluoksnį su specialiomis angomis vamzdelių tvirtinimui.) – 1 vnt.; Apklotas lipniu kraštu 150 x 240 cm – 1 vnt.; U formos paklotas 230x260 cm (plyšys 20x100xcm) – 1 vnt.; Apklotas instrumentiniam staliukui 150x190 cm – 1 vnt.; Apklotas instrumentiniam staliukui 100x150 cm – 1 vnt.; Apklotai 75x80 cm – 2 vnt.; Kojinė 30x120 cm – 1 vnt.; Elastinis bintas 12 cm x 6 m – 1 vnt.; Skysčių surinkimo maišas 30 x 40 cm – 1 vnt.; Lipnios juostos 9 x 50 cm – 3 vnt.; Popierinės servetėlės 30x24 cm – 4 vnt.; Sutvirtintas maišas MAYO staliukui 78 x145 – 2 vnt",null,null,null,null,null,"Rinkinio sudėtis: Apklotai lipniais kraštais 90 x 75 cm – 3 vnt.; Apklotas lipniu kraštu 182 x 180cm (apklotas turi papildomą absorbuojantį sluoksnį su specialiomis angomis vamzdelių tvirtinimui.) – 1 vnt.; Apklotas lipniu kraštu 150 x 240 cm – 1 vnt.; U formos paklotas 230x260 cm (plyšys 20x100xcm) – 1 vnt.; Apklotas instrumentiniam staliukui 150x190 cm – 1 vnt.; Apklotas instrumentiniam staliukui 100x150 cm – 1 vnt.; Apklotai 75x80 cm – 2 vnt.; Kojinė 30x120 cm – 1 vnt.; Elastinis bintas 12 cm x 6 m – 1 vnt.; Skysčių surinkimo maišas 30 x 40 cm – 1 vnt.; Lipnios juostos 9 x 50 cm – 3 vnt.; Popierinės servetėlės 30x24 cm – 4 vnt.; Sutvirtintas maišas MAYO staliukui 78 x145 – 2 vnt"]
["362.1.5.","Produktas turi trijų lygių pakuotę",null,null,null,null,null,"Produktas turi trijų lygių pakuotę"]
["362.1.6.","Rinkinys įpakuotas steriliame įpakavime, su sterilumo kontrolės sistema, t.y. lipdukas su pakuotės sterilumo ir gamybos duomenimis",null,null,null,null,null,"Rinkinys įpakuotas steriliame įpakavime, su sterilumo kontrolės sistema, t.y. lipdukas su pakuotės sterilumo ir gamybos duomenimis"]
["362.1.7.","Leistinas apklotų dydžių nuokrypis ± 5cm"]
[null,"","","","Suma be PVM",{"$f":"SUM(F159:F166)","v":17584},"","","","","",""]
[null,"","","","PVM suma",{"$f":"F169-F167","v":879.20000000000073},"","","","","",""]
[null,"","","","Suma su PVM",{"$f":"F167*1.05","v":18463.2},"","","","","",""]
[]
["363.","Apklotas 235x300 cm su elastine anga 7 cm, skysčius sugerianti dalis ne mažiau 50 x 100 cm."]
["363.1.","Apklotas 235x300 cm su elastine anga 7 cm, skysčius sugerianti dalis ne mažiau 50 x 100 cm.",6000,"Vnt.",5.3559999999999999,{"$f":"E172*C172","v":32136},"Medline","","",""]
["363.1.1.","Medžiaga vienkartinio naudojimo sterili",null,null,null,null,null,"Medžiaga vienkartinio naudojimo sterili"]
["363.1.2.","Apklotas sudarytas iš ne mažiau kaip trijų sluoksnių: viršutinis iš neaustinės medžiagos - gerai sugeria skysčius, vidurinis - iš polietileno, nepralaidus, apatinis - apsauginis neaustinės medžiagos sluoksnis",null,null,null,null,null,"Apklotas sudarytas iš trijų sluoksnių: viršutinis iš neaustinės medžiagos - gerai sugeria skysčius, vidurinis - iš polietileno, nepralaidus, apatinis - apsauginis neaustinės medžiagos sluoksnis"]
["363.1.3.","Elastinė anga tampriai priglunda prie galūnės, tačiau neveržia jos ir neišsitampo",null,null,null,null,null,"Elastinė anga tampriai priglunda prie galūnės, tačiau neveržia jos ir neišsitampo"]
["363.1.4.","Arčiausiai žaizdos esanti zona sutvirtinta",null,null,null,null,null,"Arčiausiai žaizdos esanti zona sutvirtinta"]
["363.1.5.","Produktas turi trijų lygių pakuotę",null,null,null,null,null,"Produktas turi trijų lygių pakuotę"]
["363.1.6.","Apklotas įpakuotas steriliame įpakavime, su sterilumo kontrolės sistema, t.y. lipdukas su pakuotės sterilumo ir gamybos duomenimis",null,null,null,null,null,"Apklotas įpakuotas steriliame įpakavime, su sterilumo kontrolės sistema, t.y. lipdukas su pakuotės sterilumo ir gamybos duomenimis"]
["363.1.7.","Leistinas apkloto dydžių nuokrypis ± 15cm"]
[null,"","","","Suma be PVM",{"$f":"SUM(F172:F179)","v":32136},"","","","","",""]
[null,"","","","PVM suma",{"$f":"F182-F180","v":1606.8000000000029},"","","","","",""]
[null,"","","","Suma su PVM",{"$f":"F180*1.05","v":33742.800000000003},"","","","","",""]
[]
["364.","Apklotų rinkinys kelio sąnario artroskopijai"]
["364.1.","Apklotų rinkinys kelio sąnario artroskopijai",800,"Vnt.",11.98,{"$f":"E185*C185","v":9584},"Medline","","",""]
["364.1.1.","Apklotai sudaryti iš ne mažiau kaip trijų sluoksnių: viršutinis iš neaustinės  medžiagos – gerai sugeria skysčius, vidurinis – iš polietileno, nepralaidus, apatinis – apsauginis neaustinės medžiagos sluoksnis.",null,null,null,null,null,"Apklotai sudaryti iš trijų sluoksnių: viršutinis iš neaustinės  medžiagos – gerai sugeria skysčius, vidurinis – iš polietileno, nepralaidus, apatinis – apsauginis neaustinės medžiagos sluoksnis."]
["364.1.2.","Rinkinio sudėtis: apklotas 230x320 cm su elastinėmis angomis, integruotu skysčių surinkimo maišu ir išleidimo anga – 1 vnt.; Apklotas instrumentiniam staliukui 150x 190 cm – 2 vnt.; Sutvirtintas maišas MAYO staliukui 78x145 – 1 vnt.; Kojinė 22x75 cm – 1 vnt.; Lipni juosta 9x50cm – 2vnt.; Servetėlės – 4 vnt",null,null,null,null,null,"Rinkinio sudėtis: apklotas 230x320 cm su elastinėmis angomis, integruotu skysčių surinkimo maišu ir išleidimo anga – 1 vnt.; Apklotas instrumentiniam staliukui 150x 190 cm – 2 vnt.; Sutvirtintas maišas MAYO staliukui 78x145 – 1 vnt.; Kojinė 22x75 cm – 1 vnt.; Lipni juosta 9x50cm – 2vnt.; Servetėlės – 4 vnt"]
["364.1.3.","Produktas turi trijų lygių pakuotę",null,null,null,null,null,"Produktas turi trijų lygių pakuotę"]
["364.1.4.","Rinkinys įpakuotas steriliame įpakavime, su sterilumo kontrolės sistema",null,null,null,null,null,"Rinkinys įpakuotas steriliame įpakavime, su sterilumo kontrolės sistema"]
["364.1.5.","Leistinas apklotų dydžių nuokrypis ± 5cm"]
[null,"","","","Suma be PVM",{"$f":"SUM(F185:F190)","v":9584},"","","","","",""]
[null,"","","","PVM suma",{"$f":"F193-F191","v":479.20000000000073},"","","","","",""]
[null,"","","","Suma su PVM",{"$f":"F191*1.05","v":10063.200000000001},"","","","","",""]
[]
["365.","Apklotas lipniu kraštu 160 x 260 cm"]
["365.1.","Apklotas lipniu kraštu 160 x 260 cm",1600,"Vnt.",2.4980000000000002,{"$f":"E196*C196","v":3996.8},"Medline","","",""]
["365.1.1.","Medžiaga vienkartinio naudojimo sterili",null,null,null,null,null,"Medžiaga vienkartinio naudojimo sterili"]
["365.1.2.","Apklotas sudarytas iš ne mažiau kaip trijų sluoksnių: viršutinis iš neaustinės medžiagos - gerai sugeria skysčius, vidurinis - iš polietileno, nepralaidus, apatinis - apsauginis neaustinės medžiagos sluoksnis",null,null,null,null,null,"Apklotas sudarytas trijų sluoksnių: viršutinis iš neaustinės medžiagos - gerai sugeria skysčius, vidurinis - iš polietileno, nepralaidus, apatinis - apsauginis neaustinės medžiagos sluoksnis"]
["365.1.3.","Produktas turi trijų lygių pakuotę",null,null,null,null,null,"Produktas turi trijų lygių pakuotę"]
["365.1.4.","Apklotas įpakuotas steriliame įpakavime, su sterilumo kontrolės sistema, t. y. lipdukas su pakuotės sterilumo ir gamybos duomenimis ",null,null,null,null,null,"Apklotas įpakuotas steriliame įpakavime, su sterilumo kontrolės sistema, t. y. lipdukas su pakuotės sterilumo ir gamybos duomenimis "]
["365.1.5.","Leistinas apkloto dydžių nuokrypis ± 10 cm"]
[null,"","","","Suma be PVM",{"$f":"SUM(F196:F201)","v":3996.8},"","","","","",""]
[null,"","","","PVM suma",{"$f":"F204-F202","v":199.84000000000015},"","","","","",""]
[null,"","","","Suma su PVM",{"$f":"F202*1.05","v":4196.6400000000003},"","","","","",""]

{"sheet":"Subtiekėjai","index":1,"n_rows":100,"n_cols":9,"rows_kept":100,"cut":false,"hidden":false,"merged":[[38,0,38,9],[21,1,21,6],[21,7,21,9],[24,0,24,3],[24,4,24,9],[25,0,25,9],[26,0,26,9],[28,0,28,9],[32,0,32,3],[32,4,32,9],[35,0,35,3],[35,4,35,9],[18,1,18,6],[18,7,18,9],[19,1,19,6],[19,7,19,9],[20,1,20,6],[20,7,20,9],[17,1,17,6],[17,7,17,9],[7,0,7,1],[7,2,7,4],[7,5,7,7],[7,8,7,9],[8,0,8,1],[8,2,8,4],[8,5,8,7],[8,8,8,9],[10,0,10,9],[12,0,12,9],[14,0,14,9],[16,1,16,6],[16,7,16,9],[5,0,5,1],[5,2,5,4],[5,5,5,7],[5,8,5,9],[6,0,6,1],[6,2,6,4],[6,5,6,7],[6,8,6,9],[4,0,4,1],[4,2,4,4],[4,5,4,7],[4,8,4,9],[1,0,1,9],[3,0,3,1],[3,2,3,4],[3,5,3,7],[3,8,3,9]]}
[]
["Sutarties vykdymui numatome pasitelkti šiuos subtiekėjus / subteikėjus / subrangovus (įrašyti visus subtiekėjus / subteikėjus / subrangovus nepriklausomai nuo tiekiamų prekių/ teikiamų paslaugų/ atliekamų darbų vertės):"]
[]
["Subtiekėjo / subteikėjo / subrangovo (-ų) pavadinimas (-ai)",null,"Adresas",null,null,"Trumpas aprašymas",null,null,"Procentas nuo pasiūlymo kainos be PVM"]
["_",null,"_",null,null,"_",null,null,"_"]
[]
[]
[]
[]
[]
["Jeigu pirkimo dokumentų 18 punkte numatytas subtiekimo / subteikimo / subrangos apribojimas:\nMes patvirtiname, kad subtiekėjams / subteikėjams / subrangovams (tiekėjams, kuriuos pasamdysime dalies sutartyje numatytų prekių tiekimui /paslaugų teikimui / darbų atlikimui) perduodamų tiekti prekių / teikti paslaugų/ atlikti darbų dalis neviršys       proc. pasiūlymo kainos be PVM."]
[]
["Mes patvirtiname, kad esame / nesame (nereikalingą išbraukti) laikomi asocijuotais (susijusiais) su Perkančiąja organizacija pagal Lietuvos Respublikoje galiojančių teisės aktų (Lietuvos Respublikos pelno mokesčio, Lietuvos Respublikos pridėtinės vertės mokesčio ir Lietuvos Respublikos gyventojų pajamų mokesčio įstatymų) nuostatas. "]
[]
["Kartu su pasiūlymu pateikiami šie dokumentai:"]
[]
["Eil.Nr.","\"Pateiktų skaitmeninių dokumentų (ar jų kopijų) pavadinimas\n(pasiūlymą sudarančių konfidencialių dokumentų pavadinimai pažymėti prierašu KONFIDENCIALU)\"",null,null,null,null,null,"Prisegtos bylos (failo) pavadinimas "]
[1,"Pasiūlymas",null,null,null,null,null,"Pasiūlymas"]
[2,"Įgaliojimas pasirašyti pasiūlymą",null,null,null,null,null,"Įgaliojimas pasirašyti pasiūlymą"]
[3,"Europos bendrasis viešųjų pirkimų dokumentas",null,null,null,null,null,"Eurospos bendrasis viešųjų pirkimų dokumentas"]
[]
[]
[]
[]
["Pasiūlymo galiojimo užtikrinimui pateikiame :"]
["Pasiūlymo galiojimo užtikrinimas nereikalaujamas."]
["(Nurodyti užtikrinimo būdą, dydį, dokumentus)"]
[]
["\nPasiūlymas galioja iki termino, nustatyto pirkimo dokumentuose.\n\nPasiūlymo neatskiriama dalis yra (rašoma, jeigu buvo reikalauta prie pasiūlymo pridėti atitinkamą dokumentą)"]
[]
[]
[]
["Tiekėjo arba jo įgalioto asmens pareigų pavadinimas",null,null,null,"Administratorė"]
[]
[]
["Pasirašančio asmens vardas ir pavardė",null,null,null,"Gintarė Saročkienė"]
[]
[]
["**kadangi visas pasiūlymas pasirašomas saugiu elektroniniu parašu, šio dokumento atskirai pasirašyti neprivaloma."]
[]
[]
[]
[]
[]
[]
[]
[]
[]
[]
[]
[]
[]
[]
[]
[]
[]
[]
[]
[]
[]
[]
[]
[]
[]
[]
[]
[]
[]
[]
[]
[]
[]
[]
[]
[]
[]
[]
[]
[]
[]
[]
[]
[]
[]
[]
[]
[]
[]
[]
[]
[]
[]
[]
[]
[]
[]
[]
[]
[]
["563-8"]